bitfinex/quotes_SOLUSD_20241127
["timestamp","ask_amount","ask_price","bid_price","bid_amount"]
[1732730461663,5.0,239.96,239.95,4.1675]
[1732730461869,5.0,239.99,239.95,12.15264822]
[1732730462251,5.0,239.99,239.98,7.98514822]
[1732730462656,5.0,240.02,239.98,7.98514822]
[1732730462961,5.0,240.02,240.01,7.98514822]
[1732730463352,10.0,240.02,240.01,7.98514822]
[1732730463667,5.0,240.02,240.01,7.98514822]
[1732730464059,5.0,240.02,240.01,12.15154822]
[1732730465667,10.0,240.04,240.01,12.15154822]
[1732730465867,10.0,240.04,240.01,4.1664]
[1732730466041,10.0,240.04,240.03,7.98514822]
[1732730469703,5.0,240.04,240.03,7.98514822]
[1732730469861,5.0,240.04,239.99,4.1666]
[1732730470062,10.0,240.04,240.03,7.98514822]
[1732730470966,5.0,240.04,240.03,7.98514822]
[1732730471169,10.0,240.1,240.03,7.98514822]
[1732730471351,10.0,240.1,240.09,7.98514822]
[1732730473281,5.0,240.1,240.09,12.15024822]
[1732730473484,5.0,240.12,240.09,12.15024822]
[1732730473685,5.0,240.12,240.11,7.98514822]
[1732730473890,5.0,240.12,240.11,12.14984822]
[1732730475160,10.0,240.12,240.11,4.1647]
[1732730475394,5.0,240.12,240.11,12.14984822]
[1732730475683,10.0,240.12,240.08,20.0]
[1732730475896,10.0,240.12,240.11,7.98514822]
[1732730477559,10.0,240.12,240.11,12.14984822]
[1732730477560,5.0,240.12,240.11,12.14984822]
[1732730478073,5.0,240.17,240.11,44.0904411]
[1732730478270,5.0,240.18,240.16,12.47795046]
[1732730478483,5.0,240.18,240.17,12.47795046]
[1732730478788,10.0,240.2,240.17,12.47795046]
[1732730478966,5.0,240.18,240.17,12.47795046]
[1732730479166,10.0,240.18,240.17,12.47795046]
[1732730480479,10.0,240.16,240.15,12.47795046]
[1732730485689,10.0,240.16,240.12,12.47795046]
[1732730485883,5.0,240.13,240.12,12.47795046]
[1732730486390,10.0,240.13,240.12,12.47795046]
[1732730488890,10.0,240.13,240.12,16.64245046]
[1732730489192,5.0,240.13,240.12,16.64245046]
[1732730489486,10.0,240.13,240.12,16.64245046]
[1732730489720,10.0,240.15,240.12,16.64245046]
[1732730489994,5.0,240.12,240.09,4.1651]
[1732730490374,5.0,240.11,240.09,4.1651]
[1732730491587,5.0,240.11,240.1,12.47795046]
[1732730491787,5.0,240.12,240.1,12.47795046]
[1732730491990,5.0,240.11,240.1,16.64285046]
[1732730492877,3.12019626,240.18,240.07,12.47795046]
[1732730492878,5.0,240.09,240.07,12.47795046]
[1732730493076,5.0,240.07,240.05,16.64365046]
[1732730493472,5.0,240.06,240.05,16.64365046]
[1732730494976,5.0,240.08,240.05,16.64365046]
[1732730495192,5.0,240.08,240.07,12.47795046]
[1732730496489,5.0,240.08,240.07,16.64335046]
[1732730498209,5.0,240.09,240.07,12.15697668]
[1732730498581,5.0,240.12,240.08,7.99157668]
[1732730498780,5.0,240.12,240.07,4.1654]
[1732730498781,5.0,240.14,240.11,7.99157668]
[1732730498983,0.4970053,240.23,240.1,20.0]
[1732730498984,5.0,240.16,240.1,20.0]
[1732730499283,5.0,240.18,240.15,7.99157668]
[1732730499511,5.0,240.18,240.17,7.99157668]
[1732730499804,5.0,240.18,240.17,12.15527668]
[1732730500984,5.0,240.16,240.08,20.0]
[1732730501197,5.0,240.15,240.12,7.99157668]
[1732730501397,5.0,240.15,240.14,7.99157668]
[1732730502384,10.0,240.19,240.14,7.99157668]
[1732730502592,10.0,240.19,240.17,7.99157668]
[1732730506817,5.0,240.19,240.18,7.99157668]
[1732730507622,10.0,240.21,240.18,7.99157668]
[1732730507815,5.0,240.21,240.2,7.99157668]
[1732730507998,5.0,240.21,240.19,12.15487668]
[1732730508199,10.0,240.21,240.19,7.99157668]
[1732730509799,5.0,240.21,240.2,7.99157668]
[1732730510700,10.0,240.21,240.2,7.99157668]
[1732730512102,5.0,240.21,240.19,12.15477668]
[1732730512303,5.0,240.19,240.18,7.99157668]
[1732730512526,10.0,240.21,240.18,7.99157668]
[1732730512824,10.0,240.21,240.19,7.99157668]
[1732730513126,5.0,240.21,240.2,7.99157668]
[1732730513898,10.0,240.21,240.2,7.99157668]
[1732730514895,5.0,240.18,240.16,20.0]
[1732730515104,5.0,240.19,240.16,20.0]
[1732730515105,5.0,240.19,240.17,7.99157668]
[1732730515404,5.0,240.18,240.16,24.1638]
[1732730517118,5.0,240.18,240.17,7.99157668]
[1732730517420,2.5783053,240.23,240.13,6.0173]
[1732730517421,10.0,240.15,240.13,4.1642]
[1732730517627,10.0,240.15,240.14,7.99157668]
[1732730517930,5.0,240.15,240.14,7.99157668]
[1732730518421,10.0,240.19,240.14,7.99157668]
[1732730518614,10.0,240.19,240.18,7.99157668]
[1732730518920,10.0,240.19,240.13,4.1642]
[1732730518921,10.0,240.19,240.17,7.99157668]
[1732730520823,5.0,240.16,240.15,7.99157668]
[1732730522245,10.0,240.19,240.15,7.99157668]
[1732730522424,10.0,240.19,240.17,7.99157668]
[1732730523405,0.4970053,240.23,240.17,12.15517668]
[1732730523406,5.0,240.22,240.17,12.15517668]
[1732730523605,0.4970053,240.23,240.21,7.99157668]
[1732730524631,0.4970053,240.23,240.22,7.99157668]
[1732730525614,5.0,240.28,240.22,7.99157668]
[1732730525615,5.0,240.3,240.26,20.0]
[1732730525823,5.0,240.3,240.29,7.99157668]
[1732730526514,5.0,240.3,240.29,12.15317668]
[1732730526931,5.0,240.29,240.27,4.1618]
[1732730527118,5.0,240.29,240.28,7.99157668]
[1732730527434,5.0,240.31,240.28,7.99157668]
[1732730527610,5.0,240.31,240.29,20.0]
[1732730528613,5.0,240.32,240.29,20.0]
[1732730528817,5.0,240.32,240.31,7.99157668]
[1732730530041,5.0,240.34,240.32,4.1611]
[1732730530230,5.0,240.34,240.33,7.99157668]
[1732730532241,5.0,240.34,240.33,12.15247668]
[1732730534332,5.0,240.34,240.33,7.99157668]
[1732730535537,5.0,240.34,240.32,7.99157668]
[1732730535924,5.0,240.34,240.3,4.1614]
[1732730535925,5.0,240.34,240.3,12.15297668]
[1732730536118,5.0,240.34,240.31,7.99157668]
[1732730536316,5.0,240.32,240.31,7.99157668]
[1732730538729,5.0,240.32,240.31,12.15277668]
[1732730546930,5.0,240.34,240.31,12.15277668]
[1732730547134,5.0,240.34,240.33,7.99157668]
[1732730547728,5.0,240.34,240.33,12.15247668]
[1732730551027,5.0,240.34,240.33,7.99157668]
[1732730551237,5.0,240.34,240.32,7.99157668]
[1732730551651,5.0,240.33,240.3,4.1614]
[1732730551848,5.0,240.31,240.3,4.1614]
[1732730553227,5.0,240.31,240.27,20.0]
[1732730553446,5.0,240.31,240.3,7.99157668]
[1732730554661,5.0,240.31,240.3,12.15297668]
[1732730558247,5.0,240.31,240.3,4.1614]
[1732730558453,5.0,240.31,240.3,12.15297668]
[1732730559153,5.0,240.31,240.27,20.0]
[1732730559154,5.0,240.29,240.28,4.1618]
[1732730559337,5.0,240.29,240.28,12.15337668]
[1732730560036,5.0,240.31,240.28,12.15337668]
[1732730560235,5.0,240.31,240.3,7.99157668]
[1732730560940,5.0,240.32,240.3,7.99157668]
[1732730561133,5.0,240.32,240.31,7.99157668]
[1732730561959,5.0,240.33,240.32,4.1611]
[1732730562257,5.0,240.33,240.32,12.15267668]
[1732730562852,5.0,240.35,240.32,12.15267668]
[1732730563151,5.0,240.35,240.34,12.15227668]
[1732730565465,10.0,240.35,240.34,7.99157668]
[1732730565758,10.0,240.35,240.34,12.15227668]
[1732730565967,5.0,240.35,240.34,12.15227668]
[1732730566465,10.0,240.35,240.34,7.99157668]
[1732730567642,10.0,240.33,240.32,7.99157668]
[1732730567857,5.0,240.33,240.32,7.99157668]
[1732730568160,10.0,240.33,240.32,7.99157668]
[1732730571069,3.11749216,240.39,240.28,4.1616]
[1732730571070,5.0,240.29,240.28,4.1616]
[1732730571368,10.0,240.29,240.28,4.1616]
[1732730572071,10.0,240.29,240.27,12.15347668]
[1732730572747,10.0,240.29,240.27,4.1619]
[1732730573165,10.0,240.29,240.27,12.15347668]
[1732730573648,10.0,240.29,240.27,4.1619]
[1732730574749,10.0,240.29,240.26,24.162]
[1732730574944,5.0,240.27,240.26,24.162]
[1732730575142,5.0,240.25,240.22,4.1626]
[1732730575364,5.0,240.23,240.2,7.99157668]
[1732730575561,5.0,240.21,240.2,7.99157668]
[1732730575871,5.0,240.21,240.17,4.1637]
[1732730575872,10.0,240.21,240.17,4.1637]
[1732730576079,10.0,240.19,240.12,4.1645]
[1732730576366,5.0,240.17,240.14,7.99157668]
[1732730576672,5.0,240.17,240.16,12.15537668]
[1732730576857,10.0,240.17,240.15,7.99157668]
[1732730577261,10.0,240.17,240.16,7.99157668]
[1732730577462,10.0,240.15,240.12,4.1645]
[1732730577659,10.0,240.15,240.14,7.99157668]
[1732730578072,5.0,240.15,240.14,7.99157668]
[1732730578557,10.0,240.15,240.14,12.15577668]
[1732730579175,5.0,240.12,240.11,4.1647]
[1732730579474,5.0,240.12,240.11,12.15627668]
[1732730579784,5.0,240.12,240.1,7.99157668]
[1732730579952,5.0,240.1,240.09,4.1649]
[1732730580149,5.0,240.1,240.09,12.15647668]
[1732730580363,5.0,240.12,240.09,12.15647668]
[1732730580547,5.0,240.15,240.06,14.5796]
[1732730580766,10.0,240.18,240.06,14.5796]
[1732730581080,10.0,240.18,240.17,7.99157668]
[1732730588366,5.0,240.18,240.17,12.15527668]
[1732730588572,5.0,240.22,240.17,12.15527668]
[1732730588778,5.0,240.22,240.21,7.99157668]
[1732730589078,10.0,240.22,240.21,7.99157668]
[1732730589671,5.0,240.22,240.21,7.99157668]
[1732730590065,10.0,240.24,240.21,7.99157668]
[1732730590365,10.0,240.24,240.23,7.99157668]
[1732730591675,10.0,240.26,240.25,20.0]
[1732730591876,16.2301,240.37,240.25,20.0]
[1732730591877,5.0,240.28,240.27,20.0]
[1732730592179,5.0,240.28,240.27,27.99157668]
[1732730592566,5.0,240.28,240.27,4.1619]
[1732730592764,5.0,240.28,240.27,12.15347668]
[1732730594068,5.0,240.28,240.27,7.99157668]
[1732730596376,5.0,240.28,240.27,12.15347668]
[1732730598885,10.1999,240.39,240.27,12.15347668]
[1732730598886,10.0,240.52,240.31,20.0]
[1732730599076,2.0793,240.46,240.4,7.99157668]
[1732730599270,16.6387,240.44,240.35,7.99157668]
[1732730599477,1.03756985,240.43,240.35,7.99157668]
[1732730599773,1.03756985,240.43,240.27,36.1439]
[1732730599982,1.03756985,240.43,240.37,7.99157668]
[1732730600482,2.0796,240.42,240.37,7.99157668]
[1732730600670,1.03754954,240.41,240.37,7.99157668]
[1732730600981,16.6387,240.44,240.39,7.99157668]
[1732730601184,2.5763053,240.47,240.36,31.96630672]
[1732730601185,1.03721782,240.46,240.43,7.99157668]
[1732730601392,1.53425262,240.47,240.45,7.99157668]
[1732730602184,1.53425262,240.47,240.39,20.0]
[1732730602384,0.4970053,240.47,240.46,7.99157668]
[1732730603890,0.4970053,240.47,240.36,0.82977426]
[1732730604072,20.0,240.43,240.36,7.99157668]
[1732730604271,21.03748803,240.42,240.32,4.1609]
[1732730604479,21.03748803,240.42,240.38,12.46205455]
[1732730604814,1.03748803,240.42,240.38,12.46205455]
[1732730605090,21.03748803,240.42,240.38,12.46205455]
[1732730605463,1.03748803,240.42,240.38,12.46205455]
[1732730605662,21.03748803,240.42,240.38,12.46205455]
[1732730605875,23.11718803,240.42,240.38,12.46205455]
[1732730606668,23.11718803,240.42,240.35,12.46205455]
[1732730607588,12.46205455,240.41,240.33,12.46205455]
[1732730607785,1.03758246,240.4,240.33,12.46205455]
[1732730608599,12.46205455,240.37,240.29,12.46205455]
[1732730608778,12.46205455,240.35,240.27,12.46205455]
[1732730608979,1.03778087,240.34,240.27,12.46205455]
[1732730610594,3.11818087,240.34,240.27,12.46205455]
[1732730610892,12.46205455,240.33,240.27,12.46205455]
[1732730611184,12.46205455,240.31,240.23,12.46205455]
[1732730611390,1.0379753,240.3,240.23,12.46205455]
[1732730611973,12.46205455,240.29,240.21,12.46205455]
[1732730612168,1.03808549,240.28,240.25,12.46205455]
[1732730612389,1.03799115,240.32,240.25,12.46205455]
[1732730612692,2.0806,240.31,240.25,12.46205455]
[1732730612891,1.03794315,240.3,240.25,12.46205455]
[1732730613595,1.03794315,240.3,240.23,12.46205455]
[1732730613896,12.46205455,240.29,240.21,12.46205455]
[1732730614079,1.03810103,240.28,240.21,12.46205455]
[1732730614472,2.0809,240.27,240.21,12.46205455]
[1732730614669,13.50018324,240.26,240.18,12.46205455]
[1732730615087,12.46205455,240.24,240.16,12.46205455]
[1732730615287,1.03825019,240.23,240.16,12.46205455]
[1732730615885,1.03825019,240.23,240.12,4.1645]
[1732730615886,1.03825019,240.23,240.18,12.46205455]
[1732730616095,3.11942362,240.25,240.18,12.46205455]
[1732730616292,3.11942362,240.25,240.2,12.46205455]
[1732730616596,20.0,240.24,240.15,4.99444955]
[1732730616967,1.03811648,240.26,240.15,24.99444955]
[1732730617789,1.03811648,240.26,240.24,12.46205455]
[1732730617991,20.0,240.29,240.24,12.46205455]
[1732730618296,1.03802794,240.28,240.24,12.46205455]
[1732730619202,3.11892794,240.28,240.24,12.46205455]
[1732730619385,1.03802794,240.28,240.24,12.46205455]
[1732730619771,15.7981,240.33,240.24,12.46205455]
[1732730619772,1.03800577,240.37,240.27,12.46205455]
[1732730619973,17.99754945,240.44,240.25,22.21250461]
[1732730619974,1.0376057,240.41,240.35,12.46205455]
[1732730620193,3.1174057,240.41,240.35,12.46205455]
[1732730621086,21.0376057,240.41,240.37,12.46205455]
[1732730621905,21.0376057,240.41,240.35,12.46205455]
[1732730623589,23.1173057,240.41,240.35,12.46205455]
[1732730624092,1.0376057,240.41,240.36,21.6998]
[1732730624305,0.4970053,240.47,240.36,21.6998]
[1732730624306,0.4970053,240.47,240.4,23.776884]
[1732730624470,0.4970053,240.47,240.46,12.46205455]
[1732730626096,0.4970053,240.47,240.44,12.46205455]
[1732730626274,0.4970053,240.47,240.41,0.82956045]
[1732730626275,0.4970053,240.47,240.42,12.46205455]
[1732730627496,15.03825985,240.47,240.4,12.46205455]
[1732730627801,15.03825985,240.47,240.36,6.3379]
[1732730627802,1.03725338,240.46,240.38,12.46205455]
[1732730628179,1.03725338,240.46,240.43,12.46205455]
[1732730628387,0.4970053,240.47,240.45,12.46205455]
[1732730629500,0.4970053,240.47,240.45,16.62075455]
[1732730630380,0.4970053,240.47,240.45,12.46205455]
[1732730631374,0.4970053,240.47,240.46,23.776884]
[1732730633298,0.4970053,240.47,240.39,4.1599]
[1732730633500,0.4970053,240.47,240.46,12.46205455]
[1732730638797,0.4970053,240.47,240.46,13.2915801]
[1732730639909,0.4970053,240.47,240.46,12.46205455]
[1732730640591,0.4970053,240.47,240.46,52.8595931]
[1732730641109,5.0,240.61,240.46,53.68888665]
[1732730641110,2.078,240.61,240.46,53.68888665]
[1732730641314,2.078,240.61,240.56,12.46205455]
[1732730641520,1.03655825,240.6,240.56,12.46205455]
[1732730641885,2.0782,240.59,240.54,12.46205455]
[1732730642200,2.0782,240.59,240.52,12.46205455]
[1732730642706,2.0782,240.59,240.54,12.46205455]
[1732730645508,1.03655825,240.6,240.55,12.46205455]
[1732730645708,22.0781,240.61,240.58,12.46205455]
[1732730646296,2.0781,240.61,240.58,12.46205455]
[1732730646699,22.0779,240.62,240.58,12.46205455]
[1732730648099,22.0779,240.62,240.56,12.46205455]
[1732730649401,22.0779,240.62,240.58,12.46205455]
[1732730650002,2.0779,240.62,240.58,12.46205455]
[1732730650208,22.0779,240.62,240.5,4.158]
[1732730650392,22.0779,240.62,240.56,12.46205455]
[1732730651913,13.49851334,240.61,240.54,12.46205455]
[1732730652312,1.03645879,240.61,240.54,12.46205455]
[1732730652508,13.49851334,240.61,240.54,12.46205455]
[1732730653597,2.0781,240.6,240.54,12.46205455]
[1732730653930,1.03666113,240.59,240.54,12.46205455]
[1732730654100,1.03666113,240.59,240.56,12.46205455]
[1732730654300,2.0781,240.6,240.58,12.46205455]
[1732730654507,2.0781,240.6,240.59,12.46205455]
[1732730655329,20.0,240.63,240.58,12.46205455]
[1732730655529,2.0779,240.62,240.58,12.46205455]
[1732730656430,2.0779,240.62,240.59,12.46205455]
[1732730657517,2.0779,240.62,240.58,12.46205455]
[1732730658603,14.53995455,240.62,240.54,12.46205455]
[1732730658826,14.53995455,240.62,240.53,12.46205455]
[1732730658827,12.46205455,240.6,240.53,12.46205455]
[1732730659141,12.46205455,240.6,240.48,7.034527]
[1732730659142,1.03662547,240.6,240.54,12.46205455]
[1732730659837,1.03662547,240.6,240.55,12.46205455]
[1732730660138,2.0782,240.59,240.55,12.46205455]
[1732730660507,2.0782,240.59,240.54,12.46205455]
[1732730661029,2.0782,240.59,240.55,12.46205455]
[1732730661206,1.03661916,240.58,240.54,12.46205455]
[1732730661612,2.0782,240.59,240.48,23.65511008]
[1732730661613,2.0782,240.59,240.55,12.46205455]
[1732730661818,2.0782,240.59,240.54,12.46205455]
[1732730663110,2.0782,240.59,240.55,12.46205455]
[1732730664308,1.03662402,240.58,240.54,12.46205455]
[1732730664514,1.03662402,240.58,240.53,12.46205455]
[1732730665323,1.03662402,240.58,240.54,12.46205455]
[1732730665521,1.03662402,240.58,240.56,12.46205455]
[1732730665835,1.03662402,240.58,240.55,12.46205455]
[1732730666214,1.03662402,240.58,240.54,12.46205455]
[1732730667035,1.03669733,240.59,240.54,12.46205455]
[1732730667246,12.46205455,240.58,240.48,6.2054]
[1732730667414,1.03674171,240.57,240.5,12.46205455]
[1732730667736,1.0367462,240.58,240.54,12.46205455]
[1732730668134,3.11497503,240.59,240.54,12.46205455]
[1732730668327,3.11497503,240.59,240.56,12.46205455]
[1732730668523,2.0783,240.59,240.56,12.46205455]
[1732730668933,2.0783,240.59,240.55,12.46205455]
[1732730669130,2.0783,240.59,240.48,18.66745455]
[1732730669131,1.03660737,240.58,240.53,12.46205455]
[1732730670134,1.03660737,240.58,240.52,12.46205455]
[1732730670345,1.03660737,240.58,240.53,12.46205455]
[1732730671237,2.0783,240.57,240.53,12.46205455]
[1732730671435,2.0783,240.57,240.52,12.46205455]
[1732730671635,2.0783,240.57,240.48,11.1929708]
[1732730671636,20.0,240.55,240.49,12.46205455]
[1732730671942,1.03679349,240.54,240.48,12.46205455]
[1732730672124,1.03679349,240.54,240.5,12.46205455]
[1732730672445,1.03679349,240.54,240.51,12.46205455]
[1732730672620,20.0,240.55,240.51,12.46205455]
[1732730673116,2.0786,240.55,240.51,12.46205455]
[1732730673536,1.03682976,240.54,240.51,12.46205455]
[1732730673928,3.11544375,240.55,240.51,12.46205455]
[1732730675322,3.11544375,240.55,240.49,12.46205455]
[1732730675520,20.0,240.54,240.49,12.46205455]
[1732730675745,1.03692541,240.53,240.49,12.46205455]
[1732730675945,1.03692541,240.53,240.47,12.46205455]
[1732730676831,1.03692541,240.53,240.49,12.46205455]
[1732730677145,2.0788,240.52,240.49,12.46205455]
[1732730678148,2.0788,240.52,240.48,12.46205455]
[1732730679549,2.0788,240.52,240.49,12.46205455]
[1732730680253,2.0788,240.52,240.5,12.46205455]
[1732730681355,1.03691744,240.56,240.51,12.46205455]
[1732730681651,1.03691744,240.56,240.53,12.46205455]
[1732730682355,2.0785,240.55,240.53,7.96384336]
[1732730682861,2.0782,240.59,240.53,7.96384336]
[1732730683030,20.0,240.58,240.55,7.96384336]
[1732730683853,21.03665824,240.58,240.55,7.96384336]
[1732730684053,2.0783,240.57,240.55,7.96384336]
[1732730684263,2.0783,240.58,240.55,7.96384336]
[1732730684432,2.0783,240.58,240.56,12.44026635]
[1732730685460,2.0782,240.59,240.56,12.44026635]
[1732730688759,2.0782,240.59,240.58,12.44026635]
[1732730689058,2.0779,240.62,240.58,12.44026635]
[1732730690054,20.0,240.62,240.58,12.44026635]
[1732730690437,20.0,240.62,240.6,12.44026635]
[1732730690764,22.0778,240.63,240.6,12.44026635]
[1732730691140,1.03641098,240.65,240.6,12.44026635]
[1732730691141,20.0,240.64,240.6,12.44026635]
[1732730691459,2.0776,240.66,240.62,12.44026635]
[1732730692035,1.03631402,240.68,240.64,12.44026635]
[1732730692252,3.11354496,240.69,240.67,12.44026635]
[1732730692556,1.03618692,240.68,240.63,12.44026635]
[1732730692732,13.47645327,240.68,240.6,12.44026635]
[1732730693064,12.44026635,240.66,240.58,12.44026635]
[1732730693363,13.47671894,240.68,240.6,12.44026635]
[1732730693544,12.44026635,240.66,240.58,12.44026635]
[1732730693741,1.03650799,240.65,240.58,12.44026635]
[1732730694062,2.0777,240.64,240.58,12.44026635]
[1732730694242,1.03653252,240.63,240.58,12.44026635]
[1732730695444,1.03653252,240.63,240.6,12.44026635]
[1732730695644,2.0777,240.64,240.6,12.44026635]
[1732730696668,22.0776,240.66,240.61,12.44026635]
[1732730698655,1.03636524,240.68,240.61,12.44026635]
[1732730698862,2.0775,240.67,240.61,12.44026635]
[1732730699965,2.0775,240.67,240.6,12.44026635]
[1732730700268,3.11382153,240.67,240.62,12.44026635]
[1732730700447,1.03628721,240.66,240.62,12.44026635]
[1732730700851,2.0777,240.65,240.6,12.44026635]
[1732730701054,2.0777,240.65,240.58,12.44026635]
[1732730702446,12.44026635,240.59,240.49,16.643485]
[1732730702665,1.03660954,240.58,240.51,12.44026635]
[1732730702868,1.03660954,240.58,240.55,12.44026635]
[1732730703036,1.03675512,240.63,240.57,12.44026635]
[1732730703240,1.03645568,240.64,240.59,12.44026635]
[1732730703643,1.03645568,240.64,240.49,5.0]
[1732730703857,1.03645568,240.64,240.59,12.44026635]
[1732730704269,2.0778,240.63,240.59,12.44026635]
[1732730704459,2.0778,240.63,240.61,12.44026635]
[1732730704665,2.0777,240.65,240.61,12.44026635]
[1732730707455,21.03636692,240.66,240.61,12.44026635]
[1732730708266,20.0,240.66,240.61,12.44026635]
[1732730708452,1.03635903,240.65,240.61,12.44026635]
[1732730708652,3.11405903,240.65,240.61,12.44026635]
[1732730708857,2.0777,240.65,240.61,12.44026635]
[1732730711072,2.0777,240.65,240.59,12.44026635]
[1732730711262,20.0,240.62,240.56,12.44026635]
[1732730711456,1.0365446,240.61,240.56,12.44026635]
[1732730711669,13.47681095,240.61,240.52,12.44026635]
[1732730712572,13.47681095,240.61,240.54,12.44026635]
[1732730712976,1.0365446,240.61,240.58,12.44026635]
[1732730713151,1.03648898,240.61,240.58,12.44026635]
[1732730713549,1.03648898,240.61,240.56,12.44026635]
[1732730714058,21.03648898,240.61,240.54,12.44026635]
[1732730714969,22.0781,240.6,240.56,12.44026635]
[1732730715160,1.03663516,240.59,240.56,12.44026635]
[1732730716194,2.0783,240.58,240.56,12.44026635]
[1732730717964,20.0,240.6,240.56,12.44026635]
[1732730718165,1.03662868,240.59,240.56,12.44026635]
[1732730718370,21.03662693,240.6,240.56,12.44026635]
[1732730718558,20.0,240.6,240.56,12.44026635]
[1732730718753,12.44026635,240.57,240.53,0.82920275]
[1732730718962,1.03667631,240.56,240.5,12.44026635]
[1732730719379,8.30988424,240.61,240.54,12.44026635]
[1732730719783,12.44026635,240.6,240.52,12.44026635]
[1732730719974,20.0,240.57,240.5,12.44026635]
[1732730720297,1.03679687,240.56,240.5,12.44026635]
[1732730720588,1.03679687,240.56,240.43,0.82937612]
[1732730720589,13.47706322,240.56,240.48,12.44026635]
[1732730720754,12.44026635,240.54,240.46,12.44026635]
[1732730720957,1.03695902,240.53,240.46,12.44026635]
[1732730721563,1.03695902,240.53,240.47,12.44026635]
[1732730721764,1.03695902,240.53,240.46,12.44026635]
[1732730721963,2.0788,240.52,240.42,4.1593]
[1732730722176,2.0788,240.52,240.47,12.44026635]
[1732730722494,1.036971,240.51,240.45,12.44026635]
[1732730722788,1.036971,240.51,240.48,12.44026635]
[1732730722975,2.0787,240.53,240.5,12.44026635]
[1732730723175,2.0783,240.57,240.52,12.44026635]
[1732730723482,21.03680635,240.56,240.5,12.44026635]
[1732730723786,20.0,240.55,240.5,12.44026635]
[1732730723975,22.0786,240.55,240.52,12.44026635]
[1732730724282,2.0786,240.55,240.53,12.44026635]
[1732730724870,2.0786,240.55,240.52,12.44026635]
[1732730725780,3.11539509,240.55,240.52,12.44026635]
[1732730726376,3.11539509,240.55,240.5,12.44026635]
[1732730727275,2.0784,240.56,240.5,12.44026635]
[1732730727474,1.03682773,240.55,240.5,12.44026635]
[1732730729379,2.0786,240.55,240.52,12.44026635]
[1732730729584,3.11538955,240.55,240.5,12.44026635]
[1732730730085,2.0786,240.55,240.52,12.44026635]
[1732730730295,2.0786,240.55,240.52,7.96419277]
[1732730730785,2.0783,240.57,240.54,7.96419277]
[1732730730960,1.03674343,240.59,240.54,7.96419277]
[1732730731163,2.0781,240.6,240.54,7.96419277]
[1732730731382,2.0781,240.6,240.56,7.96419277]
[1732730731683,2.0781,240.6,240.58,7.96419277]
[1732730731881,2.0781,240.6,240.56,7.96419277]
[1732730732083,2.0781,240.6,240.55,7.96419277]
[1732730732272,1.03660146,240.59,240.53,7.96419277]
[1732730732470,1.03660146,240.59,240.53,12.44329733]
[1732730733476,2.0783,240.58,240.53,12.44329733]
[1732730733877,2.0783,240.58,240.49,15.0135]
[1732730734069,1.03670185,240.57,240.53,12.44329733]
[1732730734376,22.0783,240.58,240.51,12.44329733]
[1732730734675,23.11502571,240.58,240.53,12.44329733]
[1732730735292,3.11502571,240.58,240.55,12.44329733]
[1732730735581,2.0783,240.58,240.55,12.44329733]
[1732730736780,2.0782,240.59,240.53,12.44329733]
[1732730736972,1.03667987,240.58,240.53,12.44329733]
[1732730737986,2.0783,240.57,240.53,12.44329733]
[1732730739289,2.0782,240.59,240.53,12.44329733]
[1732730739485,1.03670503,240.58,240.53,12.44329733]
[1732730740593,1.03670503,240.58,240.48,12.44329733]
[1732730740594,2.0782,240.59,240.56,12.44329733]
[1732730740883,2.0782,240.59,240.54,12.44329733]
[1732730741095,1.03665712,240.58,240.54,12.44329733]
[1732730741267,2.0783,240.58,240.54,12.44329733]
[1732730741461,2.0783,240.58,240.46,6.411]
[1732730741462,1.03665961,240.57,240.52,12.44329733]
[1732730741688,1.03665961,240.57,240.5,12.44329733]
[1732730742586,20.0,240.56,240.5,12.44329733]
[1732730742887,1.03681123,240.55,240.5,12.44329733]
[1732730743791,2.0786,240.54,240.5,12.44329733]
[1732730743983,2.0786,240.54,240.48,12.44329733]
[1732730744187,1.03681031,240.53,240.48,12.44329733]
[1732730744381,3.11549932,240.54,240.48,12.44329733]
[1732730744899,3.11549932,240.54,240.5,12.44329733]
[1732730745293,3.11549932,240.54,240.45,4.1588]
[1732730745294,2.0786,240.54,240.48,12.44329733]